bitfinex-derivatives/quotes_SOLF0:USTF0_20251025
["timestamp","ask_amount","ask_price","bid_price","bid_amount"]
[1761390992786,4.38812665,192.0,191.96,2.87]
[1761390992985,2.86,191.99,191.96,2.87]
[1761390998596,7.5667,192.02,191.96,2.87]
[1761390998990,2.88,192.01,191.96,2.87]
[1761390999993,4.6867,192.02,191.96,2.87]
[1761391001192,7.5667,192.02,191.96,2.87]
[1761391003899,2.88,192.01,191.96,2.87]
[1761391011497,2.88,192.0,191.96,2.87]
[1761391013003,2.88,192.0,191.96,65.55]
[1761391014603,2.88,192.0,191.97,2.82]
[1761391040017,4.6863,192.03,191.97,2.82]
[1761391040216,3.95371315,192.02,191.97,2.82]
[1761391040415,6.62371315,192.01,191.97,2.82]
[1761391040612,2.67,192.01,191.97,2.82]
[1761391045416,4.686,192.04,191.97,7.5075]
[1761391045621,3.95433324,192.03,191.98,2.74]
[1761391045817,3.95433324,192.02,191.98,2.74]
[1761391046115,4.686,192.04,191.98,2.74]
[1761391046318,3.95433185,192.03,191.98,2.74]
[1761391046520,3.95433185,192.02,191.98,2.74]
[1761391046719,7.356,192.04,191.98,2.74]
[1761391046916,3.95394567,192.03,191.98,2.74]
[1761391047117,3.95394567,192.02,191.98,2.74]
[1761391047317,7.356,192.04,191.98,2.74]
[1761391047616,3.95366639,192.03,191.98,2.74]
[1761391047817,7.356,192.04,191.98,2.74]
[1761391047818,3.95366639,192.02,191.98,2.74]
[1761391048030,2.67,192.02,191.98,2.74]
[1761391048823,4.686,192.04,191.98,2.74]
[1761391049127,3.9534471,192.03,191.99,2.74]
[1761391049327,3.9534471,192.02,191.99,2.74]
[1761391049624,2.67,192.05,191.99,2.74]
[1761391049822,6.62322531,192.04,191.99,2.74]
[1761391050024,3.95322531,192.03,191.99,2.74]
[1761391050224,2.67,192.04,191.99,2.74]
[1761391050425,3.95285854,192.03,192.0,2.74]
[1761391050625,7.3555,192.06,192.02,2.74]
[1761391050818,3.95281512,192.05,192.02,2.74]
[1761391051126,3.95281512,192.04,192.02,2.74]
[1761391051323,9.56481135,192.08,192.02,2.74]
[1761391051527,6.62218496,192.07,192.02,2.74]
[1761391051721,3.95218496,192.06,192.02,2.74]
[1761391051929,3.95218496,192.05,192.02,2.74]
[1761391052228,3.95218496,192.04,192.02,2.74]
[1761391052432,2.67,192.07,192.02,2.74]
[1761391052628,3.95121775,192.06,192.02,2.74]
[1761391052830,3.95121775,192.05,192.02,2.74]
[1761391053031,3.95121775,192.04,192.02,2.74]
[1761391053234,2.67,192.07,192.02,2.74]
[1761391053530,3.95048931,192.06,192.02,2.74]
[1761391053729,3.95048931,192.05,192.02,2.74]
[1761391053931,2.67,192.07,192.02,2.74]
[1761391054124,3.95048931,192.06,192.04,2.74]
[1761391054324,7.54981135,192.1,192.04,2.74]
[1761391054631,11.03347943,192.09,192.04,2.74]
[1761391054931,3.94932283,192.08,192.04,2.74]
[1761391055130,3.94932283,192.07,192.04,2.74]
[1761391055330,3.94932283,192.06,192.04,2.74]
[1761391055630,2.67,192.08,192.05,62.68]
[1761391055835,2.67,192.06,192.05,62.68]
[1761391056031,6.6185537,192.06,192.05,62.68]
[1761391056937,3.9485537,192.06,192.05,65.42]
[1761391061229,2.67,192.09,192.05,62.68]
[1761391061437,6.59543739,192.08,192.06,2.79]
[1761391061637,3.94543739,192.07,192.06,2.79]
[1761391067951,6.59543739,192.07,192.04,2.79]
[1761391068149,3.94543739,192.06,192.05,62.66]
[1761391068349,3.94543739,192.06,192.05,65.45]
[1761391071251,2.65,192.07,192.05,65.45]
[1761391071447,2.65,192.1,192.06,2.79]
[1761391071649,6.59049499,192.09,192.06,2.79]
[1761391071850,3.94049499,192.08,192.06,2.79]
[1761391072148,3.94049499,192.07,192.06,2.79]
[1761391073455,3.94049499,192.07,192.06,65.45]
[1761391077054,3.94049499,192.08,192.06,62.66]
[1761391077257,2.65,192.09,192.07,2.79]
[1761391077457,3.93996645,192.08,192.07,2.79]
[1761391081264,2.78,192.12,192.07,2.79]
[1761391081465,2.78,192.1,192.07,2.79]
[1761391081665,3.93986127,192.09,192.08,45.2]
[1761391082070,3.93986127,192.09,192.08,47.86]
[1761391088272,6.78986127,192.09,192.08,45.2]
[1761391091481,3.93986127,192.09,192.08,47.86]
[1761391095783,7.5339,192.13,192.09,2.66]
[1761391095985,6.7898166,192.12,192.09,2.66]
[1761391096177,3.9398166,192.11,192.09,2.66]
[1761391096377,3.9398166,192.1,192.09,2.66]
[1761391097386,3.9398166,192.11,192.09,2.66]
[1761391097589,7.72981135,192.16,192.09,2.66]
[1761391097781,6.78924393,192.15,192.09,2.66]
[1761391097978,6.78924393,192.14,192.09,2.66]
[1761391098182,3.93924393,192.13,192.09,2.66]
[1761391098383,3.93924393,192.12,192.09,2.66]
[1761391098678,2.85,192.14,192.09,2.66]
[1761391098988,3.93837157,192.13,192.09,4.6846]
[1761391099289,3.93837157,192.12,192.1,2.66]
[1761391099490,2.85,192.14,192.1,2.66]
[1761391099682,3.93649422,192.13,192.1,2.66]
[1761391099881,3.93649422,192.12,192.1,2.66]
[1761391100082,2.85,192.14,192.1,2.66]
[1761391100283,3.9361172,192.13,192.1,2.66]
[1761391100482,3.9361172,192.12,192.1,2.66]
[1761391100686,2.85,192.14,192.1,2.66]
[1761391100886,3.93518477,192.13,192.1,2.66]
[1761391101089,3.93518477,192.12,192.1,2.66]
[1761391101290,3.93500902,192.13,192.1,2.66]
[1761391101491,2.85,192.14,192.1,2.66]
[1761391101492,3.93500902,192.12,192.1,2.66]
[1761391101793,3.93500902,192.13,192.1,2.66]
[1761391102084,3.93500902,192.12,192.1,2.66]
[1761391102289,3.93500902,192.13,192.1,2.66]
[1761391102488,3.93500902,192.12,192.1,2.66]
[1761391102688,6.78500902,192.16,192.1,2.66]
[1761391102987,6.78500902,192.15,192.1,2.66]
[1761391103188,3.93500902,192.14,192.1,2.66]
[1761391103380,3.93500902,192.13,192.1,2.66]
[1761391103579,2.85,192.15,192.1,2.66]
[1761391103788,3.93362504,192.14,192.1,2.66]
[1761391103984,3.93362504,192.13,192.1,2.66]
[1761391104187,2.85,192.15,192.1,2.66]
[1761391104484,3.93313863,192.14,192.1,2.66]
[1761391104680,3.93313863,192.13,192.1,2.66]
[1761391104886,3.93313863,192.14,192.1,2.66]
[1761391105088,3.93313863,192.13,192.1,2.66]
[1761391105289,6.78313863,192.14,192.1,2.66]
[1761391105488,2.85,192.14,192.1,2.66]
[1761391106299,6.78207884,192.16,192.1,2.66]
[1761391106489,4.6828,192.17,192.1,2.66]
[1761391106490,6.78207884,192.15,192.1,2.66]
[1761391106690,3.93207884,192.14,192.1,2.66]
[1761391107098,2.85,192.14,192.1,2.66]
[1761391107483,6.78207884,192.14,192.1,2.66]
[1761391107786,2.85,192.14,192.1,2.66]
[1761391108588,6.78159647,192.14,192.1,2.66]
[1761391108895,2.85,192.14,192.1,2.66]
[1761391109593,6.78035775,192.14,192.1,2.66]
[1761391109899,2.85,192.14,192.1,2.66]
[1761391110199,3.92962056,192.16,192.1,2.66]
[1761391110394,6.77962056,192.15,192.1,2.66]
[1761391110591,3.92962056,192.14,192.1,2.66]
[1761391111598,2.85,192.15,192.1,2.66]
[1761391114192,2.85,192.15,192.1,7.3443]
[1761391114397,2.85,192.15,192.11,2.66]
[1761391116500,3.92923775,192.16,192.09,2.66]
[1761391116701,4.37526599,192.18,192.09,2.66]
[1761391116998,3.92923775,192.17,192.09,2.66]
[1761391117798,6.77923775,192.17,192.09,2.66]
[1761391118000,2.85,192.16,192.13,2.71]
[1761391118801,2.85,192.18,192.13,2.71]
[1761391118998,3.92918234,192.17,192.13,2.71]
[1761391119194,2.85,192.16,192.13,2.71]
[1761391120895,2.85,192.16,192.1,2.71]
[1761391121105,2.85,192.12,192.05,2.71]
[1761391121309,2.85,192.12,192.05,65.35]
[1761391121511,2.85,192.09,192.05,62.64]
[1761391121803,2.85,192.09,192.04,62.64]
[1761391122105,2.85,192.09,192.04,65.35]
[1761391122998,2.85,192.09,192.05,62.64]
[1761391123197,2.85,192.09,192.05,65.35]
[1761391126505,2.85,192.09,192.06,2.71]
[1761391141122,2.78,192.11,192.06,2.71]
[1761391149729,2.78,192.11,192.07,2.88]
[1761391150330,2.76,192.15,192.08,2.88]
[1761391150539,3.89520816,192.14,192.1,2.88]
[1761391150836,2.76,192.15,192.1,2.88]
[1761391159948,2.76,192.15,192.11,62.64]
[1761391160348,2.76,192.15,192.11,65.52]
[1761391163156,2.76,192.15,192.12,2.88]
[1761391163651,2.76,192.15,192.13,62.64]
[1761391168456,2.76,192.15,192.09,7.5646]
[1761391168655,2.76,192.15,192.11,2.88]
[1761391171554,2.76,192.15,192.12,62.64]
[1761391172150,2.76,192.15,192.12,65.52]
[1761391172352,2.76,192.15,192.12,2.88]
[1761391172557,2.76,192.15,192.13,62.64]
[1761391173056,2.76,192.15,192.12,2.88]
[1761391173357,2.76,192.15,192.13,62.64]
[1761391174358,2.76,192.15,192.12,2.88]
[1761391174652,2.76,192.15,192.13,62.64]
[1761391176854,2.76,192.15,192.12,2.88]
[1761391177050,2.76,192.15,192.13,65.52]
[1761391177958,2.76,192.15,192.13,62.64]
[1761391179458,2.76,192.15,192.13,65.31]
[1761391181358,2.73,192.17,192.14,2.67]
[1761391203281,2.73,192.17,192.15,62.62]
[1761391203580,2.73,192.17,192.1,7.3744]
[1761391203784,2.86,192.15,192.11,62.62]
[1761391204080,2.86,192.15,192.12,2.69]
[1761391215080,2.86,192.15,192.08,2.87]
[1761391215380,2.74,192.13,192.05,2.87]
[1761391215685,2.74,192.13,192.07,2.87]
[1761391218094,4.42970506,192.17,192.07,2.87]
[1761391218095,2.74,192.11,192.07,2.87]
[1761391221383,3.89935141,192.13,192.07,2.87]
[1761391221591,2.74,192.14,192.07,2.87]
[1761391221998,6.63850903,192.17,192.1,2.87]
[1761391222190,3.89850903,192.16,192.12,2.87]
[1761391222490,2.74,192.17,192.12,2.87]
[1761391222692,2.74,192.15,192.12,2.87]
[1761391233301,2.74,192.15,192.13,62.64]
[1761391233502,2.74,192.15,192.13,2.87]
[1761391233802,2.74,192.15,192.14,62.64]
[1761391236506,2.74,192.15,192.13,2.87]
[1761391236704,2.74,192.15,192.14,62.64]
[1761391240811,2.8,192.17,192.14,65.5]
[1761391241704,2.8,192.17,192.15,62.64]
[1761391246211,2.8,192.17,192.15,65.5]
[1761391250219,2.8,192.18,192.16,2.86]
[1761391262318,2.8,192.18,192.15,62.62]
[1761391265224,3.89030605,192.17,192.15,62.62]
[1761391265426,2.73,192.17,192.15,62.62]
[1761391265619,2.73,192.17,192.15,65.52]
[1761391266121,2.73,192.17,192.11,2.9]
[1761391266432,6.62040372,192.16,192.14,2.9]
[1761391266729,2.73,192.16,192.14,2.9]
[1761391271323,2.81,192.18,192.14,2.9]
[1761391271528,2.81,192.16,192.14,2.9]
[1761391273431,2.81,192.16,192.13,65.4]
[1761391274030,2.81,192.16,192.13,62.62]
[1761391274231,2.81,192.16,192.14,2.78]
[1761391276831,2.81,192.18,192.14,2.78]
[1761391277131,6.72220458,192.17,192.14,2.78]
[1761391277334,2.81,192.17,192.14,2.78]
[1761391281536,3.91205608,192.16,192.14,2.78]
[1761391281740,2.81,192.17,192.14,2.78]
[1761391281931,3.91207759,192.16,192.14,2.78]
[1761391282133,2.81,192.17,192.14,2.78]
[1761391282335,3.91207759,192.16,192.14,2.78]
[1761391282536,2.81,192.17,192.14,2.78]
[1761391282839,6.72211205,192.16,192.14,2.78]
[1761391283026,2.81,192.16,192.14,2.78]
[1761391286736,2.81,192.16,192.1,2.78]
[1761391286934,2.81,192.14,192.03,63.52526656]
[1761391287139,2.81,192.14,192.06,65.4]
[1761391287340,2.81,192.14,192.07,2.78]
[1761391287539,3.91164142,192.13,192.07,2.78]
[1761391287739,1.52526656,192.13,192.07,2.78]
[1761391288041,2.81,192.12,192.07,2.78]
[1761391322467,2.72,192.17,192.07,2.78]
[1761391322675,2.72,192.16,192.07,2.78]
[1761391329386,3.93193649,192.15,192.07,2.78]
[1761391329586,2.72,192.16,192.07,2.78]
[1761391329788,3.93193649,192.15,192.07,2.78]
[1761391329988,2.72,192.16,192.07,2.78]
[1761391330285,3.93193649,192.15,192.07,2.78]
[1761391330485,2.72,192.16,192.07,2.78]
[1761391330681,3.93224281,192.15,192.07,2.78]
[1761391330880,2.72,192.16,192.07,2.78]
[1761391331080,3.93224255,192.15,192.07,2.78]
[1761391331280,2.72,192.16,192.07,2.78]
[1761391331479,3.93257418,192.15,192.07,2.78]
[1761391331681,2.72,192.16,192.07,2.78]
[1761391332085,2.72,192.16,192.08,2.8]
[1761391333485,2.72,192.16,192.09,4.6847]
[1761391333790,2.72,192.16,192.1,2.8]
[1761391334091,2.72,192.16,192.12,2.8]
[1761391339284,3.90650284,192.18,192.12,4.684]
[1761391339483,7.16702945,192.19,192.13,2.8]
[1761391339686,6.63652474,192.18,192.13,2.8]
[1761391339987,2.73,192.18,192.13,2.8]
[1761391342397,11.0723764,192.21,192.13,2.8]
[1761391342597,3.90534695,192.2,192.13,2.8]
[1761391342787,3.90534695,192.19,192.13,2.8]
[1761391342988,2.73,192.21,192.13,2.8]
[1761391343188,6.63534684,192.2,192.13,2.8]
[1761391343391,3.90534684,192.19,192.13,2.8]
[1761391343598,2.73,192.2,192.13,2.8]
[1761391343798,3.90474674,192.19,192.13,2.8]
[1761391343999,2.73,192.2,192.13,2.8]
[1761391344299,3.90474674,192.19,192.13,2.8]
[1761391344501,2.73,192.2,192.13,2.8]
[1761391344699,3.90423302,192.19,192.13,2.8]
[1761391344890,2.73,192.2,192.13,2.8]
[1761391345092,3.90423302,192.19,192.13,2.8]
[1761391345293,2.73,192.2,192.13,2.8]
[1761391346301,3.90392487,192.19,192.13,2.8]
[1761391346496,2.73,192.2,192.13,2.8]
[1761391346696,3.90364729,192.19,192.13,2.8]
[1761391346901,2.73,192.2,192.13,2.8]
[1761391347196,6.63364729,192.19,192.13,2.8]
[1761391347397,2.73,192.19,192.13,2.8]
[1761391350194,2.73,192.18,192.13,2.8]
[1761391352193,3.90283817,192.21,192.13,2.8]
[1761391352398,3.90283817,192.23,192.14,2.8]
[1761391352600,3.90283817,192.22,192.15,2.8]
[1761391352795,3.90283817,192.25,192.16,2.8]
[1761391353006,3.90283817,192.24,192.18,2.8]
[1761391353206,3.90283817,192.23,192.18,2.8]
[1761391353406,3.90028007,192.26,192.18,2.8]
[1761391353601,3.90028007,192.25,192.18,2.8]
[1761391353800,3.90028007,192.24,192.18,2.8]
[1761391354002,3.90028007,192.26,192.21,2.8]
[1761391354205,3.90028007,192.25,192.21,2.8]
[1761391354406,3.90028007,192.26,192.21,2.8]
[1761391354606,3.90028007,192.25,192.21,2.8]
[1761391354800,6.63028007,192.26,192.21,2.8]
[1761391355002,2.73,192.24,192.18,4.6825]
[1761391355203,2.73,192.23,192.19,2.8]
[1761391358711,2.73,192.23,192.2,2.71]
[1761391364613,2.73,192.23,192.2,62.68]
[1761391364914,2.73,192.23,192.2,65.39]
[1761391365111,2.73,192.23,192.15,4.23363315]
[1761391365311,2.73,192.23,192.16,65.39]
[1761391365713,2.73,192.23,192.17,2.71]
[1761391381828,2.73,192.23,192.18,62.66]
[1761391382233,2.73,192.23,192.18,65.42]
[1761391382528,2.73,192.23,192.19,2.76]
[1761391383720,2.73,192.23,192.18,62.66]
[1761391383918,2.73,192.23,192.18,65.42]
[1761391384525,2.73,192.23,192.19,2.76]
[1761391386029,2.72,192.21,192.09,12.44124991]
[1761391386234,2.72,192.18,192.09,12.44124991]
[1761391389036,2.72,192.18,192.06,4.6854]
[1761391389037,2.72,192.18,192.11,2.78]
[1761391393349,2.72,192.18,192.12,2.78]
[1761391395444,61.75684681,192.21,192.12,9.68124991]
[1761391395655,61.75684681,192.21,192.13,2.78]
[1761391396046,61.75684681,192.21,192.13,64.78]
[1761391396241,61.75684681,192.21,192.14,2.78]
[1761391398456,61.75684681,192.21,192.16,2.78]
[1761391400556,2.68,192.21,192.16,2.78]
[1761391408056,2.68,192.21,192.15,62.76]
[1761391408364,2.68,192.21,192.16,62.74]
[1761391414956,2.68,192.21,192.16,65.52]
[1761391416668,2.68,192.21,192.16,65.5]
[1761391418572,2.68,192.21,192.17,2.83]
[1761391419371,2.68,192.21,192.16,65.55]
[1761391420873,2.68,192.21,192.17,2.83]
[1761391424276,2.68,192.21,192.16,65.55]
[1761391425181,2.68,192.21,192.17,2.83]
[1761391427382,2.68,192.21,192.16,65.55]
[1761391431184,2.68,192.21,192.17,2.83]
[1761391439288,4.87981135,192.3,192.2,2.87]
[1761391439480,6.55272274,192.29,192.22,2.87]
[1761391439682,2.67,192.27,192.23,65.93]
[1761391439881,2.67,192.25,192.23,63.06]
[1761391440187,6.55272274,192.24,192.23,63.06]
[1761391445193,4.87981135,192.32,192.23,68.31210049]
[1761391445489,3.82855414,192.31,192.28,0.04]
[1761391445691,2.67,192.32,192.29,0.04]
[1761391446183,4.87981135,192.33,192.29,0.04]
[1761391446389,2.67,192.33,192.29,0.04]
[1761391446697,4.87981135,192.34,192.29,0.04]
[1761391447399,7.54981135,192.36,192.29,0.04]
[1761391449895,4.87981135,192.36,192.31,2.38210049]
[1761391450089,2.78,192.35,192.32,0.04]
[1761391450692,4.87981135,192.4,192.32,0.04]
[1761391450900,4.87981135,192.41,192.4,0.04]
[1761391451194,4.87981135,192.41,192.29,15.62]
[1761391451195,4.87981135,192.41,192.38,2.38210049]
[1761391451393,7.65981135,192.41,192.39,0.04]
[1761391451590,2.78,192.4,192.32,2.38210049]
[1761391451887,2.78,192.39,192.33,0.04]
[1761391459299,2.78,192.43,192.37,0.04]
[1761391459497,2.78,192.43,192.4,0.04]
[1761391461602,2.78,192.46,192.4,0.04]
[1761391467114,2.78,192.46,192.37,0.04]
[1761391467310,2.78,192.46,192.38,2.38210049]
[1761391468619,2.78,192.46,192.39,0.04]
[1761391478732,2.78,192.46,192.39,1.56047674]
[1761391484233,2.78,192.46,192.39,1.52047674]
[1761391486123,2.78,192.46,192.36,0.04]
[1761391486323,2.78,192.46,192.36,1.56047674]
[1761391486826,2.78,192.46,192.36,0.04]
[1761391487032,2.78,192.46,192.37,1.52047674]
[1761391487631,2.78,192.46,192.37,1.56047674]
[1761391500037,2.78,192.46,192.37,0.04]
[1761391503540,2.78,192.46,192.38,0.04]
[1761391506337,2.78,192.46,192.4,1.52047674]
[1761391508429,2.78,192.46,192.39,1.56047674]
[1761391509537,2.78,192.46,192.39,1.52047674]
[1761391509840,2.78,192.46,192.4,0.04]
[1761391512045,2.78,192.46,192.42,0.04]
[1761391519645,2.78,192.46,192.39,0.04]
[1761391522848,2.78,192.46,192.39,6.49918175]
[1761391527055,2.78,192.46,192.4,0.04]
[1761391539759,2.78,192.46,192.4,6.45918175]
[1761391539956,2.78,192.46,192.41,0.04]
[1761391553984,2.78,192.46,192.41,4.7168]
[1761391555988,2.78,192.46,192.42,4.6766]
[1761391556991,2.89,192.5,192.41,0.04]
[1761391557190,2.89,192.5,192.43,0.04]
[1761391557986,2.89,192.5,192.45,4.6759]
[1761391558194,2.89,192.5,192.46,0.04]
[1761391559589,2.89,192.5,192.45,4.6759]
[1761391560193,2.89,192.5,192.45,4.7059]
[1761391561592,2.89,192.5,192.46,0.03]
[1761391562489,2.89,192.5,192.41,0.03]
[1761391563286,2.89,192.5,192.41,4.7069]
[1761391564295,2.89,192.5,192.41,11.16608175]
[1761391565493,2.89,192.5,192.41,6.45918175]
[1761391566089,2.82,192.46,192.41,6.45918175]
[1761391570696,2.82,192.46,192.41,6.49918175]
[1761391572799,2.82,192.46,192.42,0.04]
[1761391575503,2.82,192.46,192.39,0.04]
[1761391577702,2.82,192.46,192.39,4.7173]
[1761391577896,2.82,192.46,192.4,0.04]
[1761391579002,2.82,192.46,192.4,4.6771]
[1761391579208,2.82,192.46,192.41,0.04]
[1761391580915,2.82,192.46,192.42,0.04]
[1761391590921,2.82,192.46,192.39,4.7174]
[1761391592018,2.82,192.46,192.4,0.04]
[1761391594718,2.82,192.46,192.39,4.6774]
[1761391600727,2.82,192.46,192.38,84.63428361]
[1761391604126,2.81,192.44,192.38,84.63428361]
[1761391607231,2.81,192.48,192.4,0.04]
[1761391607432,2.81,192.55,192.43,0.04]
[1761391607729,2.81,192.55,192.46,0.04]
[1761391614639,2.81,192.55,192.48,1.52068426]
[1761391614842,2.81,192.55,192.49,0.04]
[1761391620845,2.78,192.57,192.5,0.04]
[1761391622343,1.52068426,192.54,192.5,0.04]
[1761391622544,2.78,192.53,192.5,0.04]
[1761391625643,2.78,192.53,192.5,4.7146]
[1761391625945,2.78,192.53,192.51,0.04]
[1761391626152,4.30068426,192.55,192.51,0.04]
[1761391627044,2.78,192.55,192.52,0.04]
[1761391628449,1.52068426,192.58,192.52,0.04]
[1761391628648,2.74,192.57,192.52,0.04]
[1761391630047,4.26068426,192.57,192.54,0.04]
[1761391630446,1.52068426,192.57,192.54,0.04]
[1761391630654,4.26068426,192.57,192.54,0.04]
[1761391631149,2.74,192.56,192.54,0.04]
[1761391632447,2.74,192.58,192.54,0.04]
[1761391638356,2.74,192.58,192.53,4.674]
[1761391638857,2.74,192.58,192.53,4.714]
[1761391639151,2.74,192.58,192.54,0.04]
[1761391639751,1.52068426,192.56,192.53,4.674]
[1761391639956,2.74,192.55,192.53,4.674]
[1761391640356,2.74,192.55,192.51,0.04]
[1761391640357,2.74,192.55,192.48,0.04]
[1761391640552,2.74,192.52,192.48,0.04]
[1761391641660,2.74,192.52,192.5,4.6746]
[1761391649358,2.74,192.52,192.5,4.7146]
[1761391649557,56.15590833,192.67,192.5,4.6746]
[1761391649859,2.74,192.55,192.51,0.04]
[1761391650459,2.74,192.55,192.49,4.675]
[1761391650664,2.74,192.55,192.49,4.715]
[1761391670769,2.74,192.55,192.45,15.6]
[1761391670975,2.74,192.55,192.44,0.46545]
[1761391671175,3.86745143,192.6,192.44,0.46545]
[1761391671176,2.37366262,192.53,192.44,0.46545]
[1761391671377,2.74,192.52,192.44,0.46545]
[1761391689298,2.74,192.52,192.45,0.04]
[1761391689895,2.74,192.52,192.45,4.6758]
[1761391690200,2.74,192.52,192.46,0.04]
[1761391716612,2.77,192.57,192.47,9.62066548]
[1761391716918,2.77,192.57,192.48,0.04]
[1761391718113,2.77,192.57,192.48,4.7151]
[1761391718309,2.77,192.57,192.49,0.03]
[1761391723229,2.77,192.57,192.48,4.6751]
[1761391725518,2.77,192.57,192.48,4.7051]
[1761391729331,2.88,192.56,192.48,4.7051]
[1761391734925,2.88,192.56,192.48,4.6751]
[1761391735130,2.88,192.56,192.49,0.03]
[1761391742341,2.88,192.56,192.51,0.03]
[1761391742543,2.88,192.56,192.5,1.51902791]
[1761391743241,2.88,192.56,192.49,0.03]
[1761391744039,6.42133048,192.64,192.46,0.03]
[1761391744040,2.69,192.54,192.46,0.03]
[1761391748836,2.69,192.53,192.46,0.03]
[1761391753546,2.69,192.53,192.44,0.50545]
[1761391754052,2.69,192.52,192.44,0.50545]
[1761391757354,2.69,192.52,192.44,0.46545]
[1761391758050,2.69,192.51,192.44,0.46545]
[1761391758453,2.69,192.5,192.44,0.46545]
[1761391772058,3.8561517,192.56,192.48,0.04]
[1761391772262,5.17e-05,192.55,192.54,1.55902791]
[1761391772457,4.85497781,192.66,192.56,0.04]
[1761391772760,2.69,192.67,192.6,0.04]
[1761391773168,2.69,192.67,192.6,1.55902791]
[1761391774161,2.69,192.67,192.6,0.04]
[1761391774369,2.69,192.67,192.6,1.55902791]
[1761391775169,2.69,192.67,192.6,0.04]
[1761391775369,2.69,192.67,192.61,1.51902791]
[1761391775961,4.85497781,192.68,192.61,1.51902791]
[1761391776169,2.69,192.66,192.58,1.51902791]
[1761391777070,4.16894933,192.67,192.62,0.04]
[1761391777266,4.16894933,192.68,192.62,0.04]
[1761391777467,2.69,192.68,192.62,0.04]
[1761391778375,2.69,192.68,192.59,4.7026]
[1761391778574,2.69,192.68,192.62,1.51902791]
[1761391782766,2.69,192.68,192.61,0.03]
[1761391786676,2.7,192.67,192.61,0.03]
[1761391786872,6.46389287,192.67,192.61,0.03]
[1761391787077,2.7,192.65,192.61,0.03]
[1761391787373,2.7,192.64,192.61,0.03]
[1761391790080,2.7,192.64,192.58,7.07276097]
[1761391790380,2.7,192.64,192.59,0.03]
[1761391800190,2.7,192.64,192.56,2.37006097]
[1761391800492,2.7,192.64,192.56,2.40006097]
[1761391801289,2.7,192.64,192.57,0.03]
[1761391801687,3.90760208,192.68,192.57,0.03]
[1761391801888,2.78,192.63,192.57,0.03]
[1761391802488,2.78,192.63,192.56,2.37006097]
[1761391802694,2.78,192.63,192.54,0.03]
[1761391804194,6.68821828,192.63,192.54,0.03]
[1761391804398,3.90821828,192.62,192.54,0.03]
[1761391804588,2.78,192.61,192.54,0.03]
[1761391806206,6.68821828,192.61,192.54,0.03]